bitfinex/quotes_SOLUSD_20250118
["timestamp","ask_amount","ask_price","bid_price","bid_amount"]
[1737207742803,32.71196439,239.68,239.61,32.71196439]
[1737207743004,32.71196439,239.7,239.61,32.71196439]
[1737207743503,32.71196439,239.74,239.65,32.71196439]
[1737207743916,32.71196439,239.75,239.65,32.71196439]
[1737207744119,32.71196439,239.73,239.65,32.71196439]
[1737207744813,32.71196439,239.75,239.67,32.71196439]
[1737207745628,0.0001,239.76,239.7,23.776884]
[1737207745924,0.0001,239.76,239.71,32.71196439]
[1737207747807,0.0001,239.76,239.71,56.48884839]
[1737207750232,32.71196439,239.75,239.68,32.71196439]
[1737207750429,0.0001,239.76,239.62,1.62551877]
[1737207750430,32.71196439,239.74,239.67,32.71196439]
[1737207750733,32.71196439,239.72,239.65,32.71196439]
[1737207751620,0.0001,239.76,239.65,32.71196439]
[1737207751819,32.71196439,239.73,239.65,32.71196439]
[1737207752726,32.71196439,239.73,239.68,20.0]
[1737207753031,0.0001,239.76,239.69,32.71196439]
[1737207753236,0.0001,239.76,239.71,32.71196439]
[1737207753531,0.0001,239.76,239.73,32.71196439]
[1737207756038,0.0001,239.76,239.75,32.71196439]
[1737207757112,0.0001,239.76,239.75,56.48884839]
[1737207757932,1.568,239.89,239.79,20.0]
[1737207758139,7.9991,239.96,239.87,32.71196439]
[1737207758440,32.71196439,239.94,239.87,32.71196439]
[1737207759337,32.71196439,239.94,239.87,32.62129469]
[1737207759540,32.71196439,239.95,239.87,32.62129469]
[1737207760315,7.9991,239.96,239.87,32.62129469]
[1737207760521,32.71196439,239.95,239.87,32.62129469]
[1737207762220,0.063,239.96,239.87,32.62129469]
[1737207762419,32.71196439,239.91,239.82,32.71196439]
[1737207762627,32.71196439,239.83,239.72,32.71196439]
[1737207762843,32.71196439,239.8,239.72,32.71196439]
[1737207763540,20.03608408,239.8,239.72,20.03608408]
[1737207763838,20.03608408,239.8,239.71,23.776884]
[1737207764038,20.03608408,239.8,239.73,23.776884]
[1737207764231,20.03608408,239.82,239.75,23.776884]
[1737207765135,20.03608408,239.84,239.78,20.0]
[1737207765344,32.54879762,239.84,239.78,20.0]
[1737207765727,32.54879762,239.86,239.78,52.54879762]
[1737207767646,7.9361,239.88,239.78,52.54879762]
[1737207767851,32.54879762,239.85,239.78,52.54879762]
[1737207768149,32.54879762,239.85,239.78,32.54879762]
[1737207768528,32.54879762,239.85,239.7,6.0676]
[1737207768746,32.54879762,239.85,239.77,32.54879762]
[1737207769242,32.54879762,239.87,239.79,32.54879762]
[1737207769460,32.54879762,239.85,239.77,32.54879762]
[1737207769848,32.54879762,239.87,239.79,32.54879762]
[1737207770040,32.54879762,239.87,239.8,23.776884]
[1737207770243,32.54879762,239.87,239.79,32.54879762]
[1737207771135,32.54879762,239.87,239.77,56.32568162]
[1737207771342,32.54879762,239.87,239.77,32.54879762]
[1737207772053,32.54879762,239.87,239.79,32.54879762]
[1737207773240,32.54879762,239.87,239.74,43.776884]
[1737207773441,32.54879762,239.87,239.79,23.776884]
[1737207773957,32.54879762,239.87,239.8,32.54879762]
[1737207774449,32.54879762,239.89,239.82,32.54879762]
[1737207774756,32.54879762,239.83,239.65,6.6116]
[1737207774939,32.54879762,239.75,239.67,32.54879762]
[1737207776447,32.54879762,239.75,239.7,20.0]
[1737207776831,1.5907,239.81,239.65,6.6116]
[1737207776832,32.54879762,239.79,239.71,32.54879762]
[1737207777257,32.54879762,239.74,239.65,6.6116]
[1737207777549,32.54879762,239.74,239.69,20.0]
[1737207777849,1.5907,239.81,239.73,20.0]
[1737207778055,32.54879762,239.79,239.71,23.776884]
[1737207778430,32.54879762,239.79,239.73,23.776884]
[1737207780350,32.54879762,239.85,239.77,23.776884]
[1737207780545,32.54879762,239.87,239.79,32.54879762]
[1737207780945,32.54879762,239.89,239.79,32.54879762]
[1737207781342,32.54879762,239.89,239.8,23.776884]
[1737207781544,32.54879762,239.89,239.81,32.54879762]
[1737207781764,32.54879762,239.87,239.79,32.54879762]
[1737207782245,32.54879762,239.89,239.8,23.776884]
[1737207782559,32.54879762,239.89,239.79,32.54879762]
[1737207783959,32.54879762,239.89,239.8,23.776884]
[1737207784762,32.54879762,239.89,239.8,161.076884]
[1737207785059,1.5914,239.9,239.82,23.776884]
[1737207785360,20.01811021,239.91,239.84,23.776884]
[1737207785664,20.01811021,239.94,239.85,20.01811021]
[1737207786044,20.01811021,239.87,239.77,140.54025773]
[1737207786255,20.01811021,239.87,239.83,20.0]
[1737207786560,20.01811021,239.89,239.83,20.0]
[1737207787357,20.01811021,239.85,239.69,137.3]
[1737207787556,20.01811021,239.81,239.72,20.01811021]
[1737207787861,20.01811021,239.79,239.7,20.01811021]
[1737207788537,20.01811021,239.72,239.62,20.01811021]
[1737207788861,20.01811021,239.66,239.58,20.01811021]
[1737207789645,20.01811021,239.66,239.56,1.69774391]
[1737207789646,20.01811021,239.64,239.56,20.01811021]
[1737207791246,20.01811021,239.68,239.61,20.0]
[1737207791646,20.01811021,239.66,239.58,20.01811021]
[1737207791943,20.01811021,239.64,239.56,20.01811021]
[1737207794062,20.01811021,239.64,239.59,20.0]
[1737207794758,4.1719,239.7,239.54,20.01811021]
[1737207795063,4.1719,239.7,239.48,0.03]
[1737207795064,20.01811021,239.55,239.48,0.03]
[1737207795251,20.01811021,239.53,239.48,0.03]
[1737207795679,20.01811021,239.49,239.48,0.03]
[1737207795958,20.01811021,239.49,239.41,0.03]
[1737207796156,6.57996681,239.58,239.41,20.04811021]
[1737207796337,20.01811021,239.49,239.41,20.04811021]
[1737207796742,2.40596681,239.58,239.43,20.01811021]
[1737207796743,20.01811021,239.51,239.43,20.01811021]
[1737207796959,1.623,239.58,239.47,20.01811021]
[1737207796960,20.01811021,239.55,239.47,20.01811021]
[1737207797167,1.623,239.58,239.51,20.01811021]
[1737207797360,1.623,239.58,239.42,6.3717409]
[1737207797361,32.60945148,239.62,239.54,52.60945148]
[1737207797666,32.60945148,239.56,239.41,0.03]
[1737207797866,32.60945148,239.54,239.44,32.60945148]
[1737207798043,32.60945148,239.54,239.46,32.60945148]
[1737207798239,4.1729,239.64,239.41,0.03]
[1737207798240,32.60945148,239.48,239.41,0.03]
[1737207798465,0.78274359,239.63,239.47,32.60945148]
[1737207798640,32.60945148,239.58,239.49,32.60945148]
[1737207800163,32.60945148,239.58,239.41,0.03]
[1737207800164,32.60945148,239.58,239.48,20.0]
[1737207800469,32.60945148,239.58,239.5,32.60945148]
[1737207800647,32.60945148,239.6,239.5,32.60945148]
[1737207800849,32.60945148,239.6,239.52,32.60945148]
[1737207805567,32.60945148,239.62,239.52,32.60945148]
[1737207807774,32.60945148,239.64,239.56,32.60945148]
[1737207807968,32.60945148,239.62,239.54,32.60945148]
[1737207808953,32.60945148,239.64,239.54,32.60945148]
[1737207809161,39.19955148,239.66,239.59,32.60945148]
[1737207809761,39.12475148,239.74,239.64,32.60945148]
[1737207809959,1.5307,239.75,239.68,32.60945148]
[1737207810276,6.5153,239.81,239.72,32.60945148]
[1737207810277,32.60945148,239.8,239.72,32.60945148]
[1737207810874,1.5307,239.82,239.64,32.60945148]
[1737207810875,34.14015148,239.82,239.74,32.60945148]
[1737207812880,32.60945148,239.78,239.64,32.60945148]
[1737207813069,32.60945148,239.76,239.68,32.60945148]
[1737207813761,32.60945148,239.74,239.66,32.60945148]
[1737207813957,32.60945148,239.72,239.64,32.60945148]
[1737207814276,32.60945148,239.7,239.62,32.60945148]
[1737207815485,32.60945148,239.68,239.6,32.60945148]
[1737207815675,32.60945148,239.66,239.58,32.60945148]
[1737207817097,32.60945148,239.68,239.58,32.60945148]
[1737207817387,20.05902205,239.68,239.59,20.05902205]
[1737207817883,20.05902205,239.66,239.57,20.05902205]
[1737207818479,20.05902205,239.66,239.59,20.05902205]
[1737207818679,20.05902205,239.68,239.61,20.05902205]
[1737207818887,20.05902205,239.7,239.61,20.05902205]
[1737207820273,20.05902205,239.7,239.56,43.776884]
[1737207820479,20.05902205,239.7,239.61,20.05902205]
[1737207820777,20.05902205,239.74,239.65,20.05902205]
[1737207821463,20.05902205,239.76,239.69,20.05902205]
[1737207822564,20.05902205,239.78,239.69,20.05902205]
[1737207822760,20.05902205,239.78,239.71,20.05902205]
[1737207823270,20.05902205,239.78,239.69,23.776884]
[1737207823479,20.05902205,239.78,239.7,20.05902205]
[1737207824565,21.58972205,239.82,239.74,20.05902205]
[1737207826268,20.05902205,239.87,239.78,20.05902205]
[1737207826477,21.63282205,239.89,239.8,20.05902205]
[1737207828273,21.63282205,239.89,239.81,23.776884]
[1737207828475,26.66412205,239.91,239.83,23.776884]
[1737207828670,20.05902205,239.91,239.83,23.776884]
[1737207828887,20.05902205,239.91,239.85,23.776884]
[1737207829090,0.063,239.96,239.9,20.05902205]
[1737207831283,0.063,239.96,239.83,20.05902205]
[1737207831284,20.05902205,239.92,239.83,20.05902205]
[1737207832380,20.05902205,239.92,239.86,20.0]
[1737207834994,20.05902205,239.92,239.83,20.05902205]
[1737207836896,20.05902205,239.92,239.8,43.776884]
[1737207837085,20.05902205,239.82,239.68,6.2957]
[1737207837293,20.05902205,239.78,239.7,20.05902205]
[1737207837474,20.05902205,239.8,239.72,20.05902205]
[1737207838086,20.05902205,239.78,239.7,20.05902205]
[1737207838784,20.05902205,239.81,239.74,20.05902205]
[1737207838990,20.05902205,239.83,239.74,20.05902205]
[1737207839991,12.3472,239.91,239.76,20.05902205]
[1737207840198,20.05902205,239.85,239.76,20.05902205]
[1737207842105,20.05902205,239.85,239.7,6.0845668]
[1737207842106,20.05902205,239.85,239.78,20.05902205]
[1737207842406,20.05902205,239.88,239.8,20.05902205]
[1737207844103,1.5738,239.91,239.84,20.05902205]
[1737207845605,20.05902205,239.9,239.83,137.3]
[1737207847292,20.05902205,239.88,239.83,137.3]
[1737207847807,20.05902205,239.88,239.81,161.076884]
[1737207849107,5.01210921,239.96,239.85,23.776884]
[1737207849108,20.05902205,239.92,239.85,23.776884]
[1737207852716,20.05902205,239.88,239.77,137.3]
[1737207853018,20.05902205,239.88,239.79,157.35902205]
[1737207853307,20.05902205,239.88,239.81,20.05902205]
[1737207853909,20.05902205,239.9,239.82,23.776884]
[1737207854913,20.05902205,239.9,239.81,157.35902205]
[1737207855093,20.05902205,239.88,239.81,20.05902205]
[1737207855291,20.05902205,239.86,239.77,157.35902205]
[1737207855796,20.05902205,239.86,239.77,137.3]
[1737207856005,20.05902205,239.86,239.79,20.05902205]
[1737207856305,20.05902205,239.88,239.8,161.076884]
[1737207856612,0.063,239.96,239.84,23.776884]
[1737207856911,20.05902205,239.92,239.84,161.076884]
[1737207857508,0.063,239.96,239.84,161.076884]
[1737207857691,20.05902205,239.92,239.84,161.076884]
[1737207858119,20.05902205,239.92,239.86,23.776884]
[1737207858304,20.05902205,239.94,239.86,161.076884]
[1737207858608,20.05902205,239.94,239.87,20.05902205]
[1737207858796,20.12202205,239.96,239.88,161.076884]
[1737207858996,20.12202205,239.96,239.89,20.05902205]
[1737207859197,20.12202205,239.96,239.89,157.35902205]
[1737207863018,0.063,239.96,239.9,23.776884]
[1737207863219,0.063,239.96,239.92,23.776884]
[1737207865329,0.063,239.96,239.93,23.776884]
[1737207865505,0.063,239.96,239.93,181.13590605]
[1737207866222,0.063,239.96,239.95,201.13590605]
[1737207866906,0.063,239.96,239.95,181.076884]
[1737207867214,0.063,239.96,239.95,137.3]
[1737207868821,0.063,239.96,239.95,161.076884]
[1737207872926,0.063,239.96,239.95,137.3]
[1737207873904,20.12202205,239.96,239.87,157.35902205]
[1737207874113,0.063,239.96,239.9,43.83590605]
[1737207874827,0.063,239.96,239.91,20.05902205]
[1737207875014,0.063,239.96,239.92,20.05902205]
[1737207875416,20.12202205,240.0,239.91,23.776884]
[1737207875417,0.063,240.0,239.98,20.0]
[1737207875609,0.063,240.0,239.99,157.35902205]
[1737207875931,1.5693,240.14,240.09,23.776884]
[1737207876114,20.05902205,240.13,240.09,23.776884]
[1737207876308,20.05902205,240.13,240.03,20.05902205]
[1737207876522,20.05902205,240.11,239.97,137.3]
[1737207876822,20.05902205,240.11,240.01,20.05902205]
[1737207877018,20.05902205,240.03,239.96,157.35902205]
[1737207877219,20.05902205,240.03,239.96,137.3]
[1737207877628,20.05902205,240.03,239.97,23.776884]
[1737207877817,20.05902205,240.07,240.0,20.0]
[1737207878218,20.05902205,240.07,240.01,20.0]
[1737207879536,20.05902205,240.05,240.01,20.0]
[1737207879733,20.05902205,240.05,239.98,137.3]
[1737207880029,20.05902205,239.99,239.92,137.3]
[1737207880206,20.0,240.06,239.92,137.3]
[1737207880406,20.05902205,239.94,239.9,137.3]
[1737207880623,1.6387,239.9,239.78,137.3]
[1737207880927,1.6387,239.9,239.49,59.12542414]
[1737207880928,20.05902205,239.81,239.74,137.3]
[1737207881226,20.05902205,239.77,239.7,157.35902205]
[1737207881411,20.05902205,239.75,239.68,157.35902205]
[1737207881611,20.05902205,239.77,239.68,157.35902205]
[1737207881817,20.05902205,239.74,239.66,157.35902205]
[1737207882127,20.05902205,239.75,239.67,157.35902205]
[1737207882322,20.05902205,239.71,239.63,157.35902205]
[1737207882527,6.98742354,239.8,239.63,137.3]
[1737207882528,20.05902205,239.69,239.63,137.3]
[1737207882825,20.05902205,239.66,239.58,157.35902205]
[1737207883005,20.05902205,239.64,239.58,137.3]
[1737207883623,20.05902205,239.64,239.47,6.0096]
[1737207883624,20.05902205,239.6,239.52,157.35902205]
[1737207883819,20.05902205,239.59,239.52,137.3]
[1737207884023,20.05902205,239.55,239.48,157.38902205]
[1737207884229,7.03296005,239.63,239.48,0.03]
[1737207884539,6.2502,239.63,239.48,0.03]
[1737207884736,0.7828167,239.62,239.48,0.03]
[1737207885212,20.0,239.6,239.48,0.03]
[1737207885415,20.05902205,239.49,239.48,0.03]
[1737207885614,2.36002278,239.59,239.48,0.03]
[1737207885919,6.53392278,239.59,239.48,0.03]
[1737207886116,20.0,239.56,239.48,0.03]
[1737207886320,0.78312706,239.55,239.41,0.03]
[1737207886713,6.5338936,239.59,239.41,0.03]
[1737207886939,2.3600936,239.59,239.41,137.33]
[1737207887141,2.3600936,239.59,239.41,0.03]
[1737207887429,20.05902205,239.43,239.41,0.03]
[1737207887626,20.05902205,239.52,239.41,0.03]
[1737207887627,20.05902205,239.42,239.41,0.03]
[1737207888029,20.05902205,239.44,239.41,0.03]
[1737207888342,20.05902205,239.42,239.41,0.03]
[1737207889045,20.05902205,239.42,239.32,20.05902205]
[1737207889237,20.05902205,239.39,239.32,20.05902205]
[1737207889423,20.05902205,239.39,239.35,20.0]
[1737207889614,20.05902205,239.41,239.33,20.05902205]
[1737207889926,20.05902205,239.34,239.24,0.03]
[1737207890120,20.05902205,239.36,239.28,20.05902205]
[1737207890317,0.78340678,239.62,239.35,20.05902205]
[1737207890526,20.05902205,239.64,239.39,157.3]
[1737207890727,1.5769,239.68,239.4,29.86373845]
[1737207890934,1.5769,239.68,239.49,20.0]
[1737207891615,1.5769,239.68,239.64,20.05902205]
[1737207891821,6.2502,239.75,239.52,20.05902205]
[1737207891822,26.30922205,239.75,239.66,20.05902205]
[1737207892227,27.09154989,239.75,239.66,20.05902205]
[1737207892430,0.78224455,239.74,239.66,20.05902205]
[1737207892709,26.30922205,239.75,239.66,20.05902205]
[1737207893431,6.2502,239.75,239.68,32.57709286]
[1737207893847,1.5769,239.78,239.72,32.57709286]
[1737207894424,32.57709286,239.82,239.74,32.57709286]
[1737207894629,33.35916542,239.82,239.74,32.57709286]
[1737207896339,32.57709286,239.84,239.76,32.57709286]
[1737207896546,32.57709286,239.86,239.78,32.57709286]
[1737207899436,32.57709286,239.88,239.8,32.57709286]
[1737207899817,1.5769,239.89,239.82,32.57709286]
[1737207900022,1.5769,239.89,239.84,32.57709286]
[1737207900429,1.5769,239.89,239.82,32.57709286]
[1737207900633,1.5769,239.89,239.84,32.57709286]
[1737207901347,32.57709286,239.93,239.84,32.57709286]
[1737207902348,32.57709286,239.91,239.84,32.57709286]
[1737207902758,32.57709286,239.93,239.84,32.57709286]
[1737207902928,0.78174609,239.95,239.86,32.57709286]
[1737207903225,32.57709286,239.95,239.86,32.57709286]
[1737207903431,33.35873857,239.95,239.86,32.57709286]
[1737207903633,32.57709286,239.95,239.86,32.57709286]
[1737207904251,33.35873063,239.95,239.86,32.57709286]
[1737207904580,32.57709286,239.93,239.84,32.57709286]
[1737207904732,33.35882283,239.93,239.85,20.0]
[1737207905128,32.57709286,239.89,239.8,32.57709286]
[1737207905350,32.57709286,239.85,239.75,32.57709286]
[1737207905953,32.57709286,239.83,239.75,32.57709286]
[1737207906252,32.57709286,239.87,239.79,32.57709286]
[1737207906463,32.57709286,239.89,239.81,32.57709286]
[1737207907033,32.57709286,239.91,239.84,32.57709286]
[1737207907334,32.57709286,239.91,239.82,52.57709286]
[1737207908743,32.57709286,239.93,239.84,32.57709286]
[1737207909149,32.57709286,239.95,239.87,32.57709286]
[1737207909336,32.57709286,239.95,239.82,137.3]
[1737207909337,32.57709286,239.96,239.89,32.57709286]
[1737207910057,34.15399286,239.97,239.89,32.57709286]
[1737207910260,34.15399286,239.97,239.76,32.57709286]
[1737207910261,32.57709286,240.01,239.93,32.57709286]
[1737207910549,6.2502,240.05,239.95,32.57709286]
[1737207910550,32.57709286,240.03,239.95,32.57709286]
[1737207910768,32.57709286,240.09,240.01,32.57709286]
[1737207911263,32.57709286,240.11,240.03,32.57709286]
[1737207911766,32.57709286,240.09,240.01,32.57709286]
[1737207912244,32.57709286,240.11,240.03,32.57709286]
[1737207913233,32.57709286,240.06,239.97,32.57709286]
[1737207913437,19.99894395,240.05,239.98,23.776884]
[1737207913661,19.99894395,240.07,240.0,23.776884]
[1737207913957,19.99894395,240.09,240.01,19.99894395]
[1737207914162,19.99894395,240.11,240.03,19.99894395]
[1737207915244,19.99894395,240.13,240.05,19.99894395]
[1737207915753,21.57584395,240.15,240.07,19.99894395]
[1737207915954,19.99894395,240.13,240.05,157.29894395]
[1737207916253,39.9978879,240.06,239.75,1.6201185]
[1737207916453,23.776884,239.87,239.78,19.99894395]
[1737207916647,19.99894395,239.84,239.76,19.99894395]
[1737207916841,0.78197481,239.86,239.67,143.441]
[1737207916842,19.99894395,239.86,239.78,157.29894395]
[1737207917243,19.99894395,239.88,239.8,19.99894395]
[1737207917445,32.53822611,239.89,239.8,169.83822611]
[1737207919059,32.53822611,239.89,239.82,32.53822611]
[1737207919753,0.78169743,239.99,239.82,169.83822611]
[1737207919754,32.53822611,239.91,239.82,169.83822611]
[1737207920752,32.53822611,239.91,239.85,20.0]
[1737207920955,32.53822611,239.91,239.85,157.3]
[1737207922662,32.53822611,239.93,239.86,32.53822611]
[1737207923041,0.78149389,239.99,239.92,32.53822611]
[1737207923361,32.53822611,240.02,239.92,169.83822611]
[1737207923864,32.53822611,240.02,239.94,32.53822611]
[1737207924159,32.53822611,240.06,239.98,169.83822611]
[1737207924549,32.53822611,240.06,240.01,20.0]
[1737207925257,20.0,240.14,240.01,157.3]
[1737207925474,32.53822611,240.09,240.01,157.3]
[1737207926143,32.53822611,240.09,240.01,137.3]
[1737207926344,32.53822611,240.07,240.01,137.3]
[1737207926950,32.53822611,240.05,240.01,137.3]
[1737207927762,32.53822611,240.07,240.01,137.3]
[1737207928161,32.53822611,240.05,240.01,137.3]
[1737207928357,32.53822611,240.05,239.98,32.53822611]
[1737207928553,32.53822611,239.99,239.96,137.3]
[1737207930761,32.53822611,240.01,239.96,137.3]
[1737207932167,32.53822611,240.02,239.96,137.3]
[1737207933169,32.53822611,240.04,239.97,169.83822611]
[1737207933769,32.53822611,240.06,239.98,169.83822611]
[1737207934167,32.53822611,240.06,239.99,32.53822611]
[1737207934464,0.063,240.15,240.05,23.776884]
[1737207934656,0.063,240.15,240.1,169.83822611]
[1737207935448,0.063,240.15,240.12,169.83822611]
[1737207937100,0.063,240.15,240.14,189.83822611]
[1737207937271,0.063,240.15,240.14,52.53822611]
[1737207940374,0.063,240.17,240.15,23.776884]
[1737207940579,0.063,240.2,240.16,32.53822611]
[1737207940769,0.063,240.2,240.19,52.53822611]
[1737207940964,0.063,240.2,240.05,5.06280009]
[1737207940965,4.2261,240.2,240.05,5.06280009]
[1737207941282,1.5065,239.87,239.57,154.13191666]
[1737207941587,32.53822611,239.69,239.68,12.65891666]
[1737207941769,0.78248966,239.86,239.68,78.18801735]
[1737207942288,1.5065,239.87,239.68,78.18801735]
[1737207942289,32.53822611,239.79,239.69,92.79011735]
[1737207942978,66.15114534,239.78,239.7,23.776884]
[1737207943281,66.15114534,239.78,239.69,78.30959734]
[1737207943785,8.26889316,239.77,239.7,23.776884]
[1737207944290,57.88225218,239.78,239.76,169.83822611]
[1737207944996,65.68584869,239.86,239.76,169.83822611]
[1737207945171,33.14762258,239.86,239.78,32.53822611]
[1737207945481,33.14762258,239.86,239.8,32.53822611]
[1737207945980,32.53822611,239.88,239.78,169.83822611]
[1737207946381,32.53822611,239.9,239.8,32.53822611]
[1737207946680,32.53822611,239.84,239.76,32.53822611]
[1737207946883,32.53822611,239.78,239.69,18.64731992]
[1737207947087,32.53822611,239.7,239.69,18.64731992]
[1737207947786,56.31511011,239.7,239.69,18.64731992]
[1737207948288,32.53822611,239.7,239.69,18.64731992]
[1737207948795,56.31511011,239.7,239.69,16.98071992]
[1737207949092,89.63597931,239.7,239.69,16.98071992]
[1737207949389,57.0977532,239.7,239.69,16.98071992]
[1737207950478,56.31511011,239.7,239.69,16.98071992]
[1737207950896,32.53822611,239.7,239.69,16.98071992]
[1737207951689,0.78236661,239.85,239.69,186.81894603]
[1737207951880,32.53822611,239.78,239.71,32.53822611]
[1737207952071,32.53822611,239.8,239.71,32.53822611]
[1737207952267,32.53822611,239.84,239.75,32.53822611]
[1737207952474,32.53822611,239.86,239.77,32.53822611]
[1737207953097,32.53822611,239.89,239.81,32.53822611]
[1737207953392,32.53822611,239.91,239.81,32.53822611]
[1737207953593,32.53822611,239.91,239.83,32.53822611]
[1737207953788,32.53822611,239.93,239.85,32.53822611]
[1737207954289,32.53822611,239.95,239.87,32.53822611]
[1737207954688,6.0236,240.06,239.91,32.53822611]
[1737207954689,32.53822611,239.98,239.91,32.53822611]
[1737207954890,32.53822611,240.01,239.93,32.53822611]
[1737207955594,32.53822611,240.01,239.91,32.53822611]
[1737207955892,32.53822611,240.01,239.93,32.53822611]
[1737207956397,32.53822611,240.03,239.95,32.53822611]
[1737207957087,32.53822611,240.05,239.95,32.53822611]
[1737207957286,32.53822611,240.07,239.97,32.53822611]
[1737207958001,32.53822611,240.07,239.99,32.53822611]
[1737207959496,0.78115548,240.11,239.99,32.53822611]
[1737207959696,32.53822611,240.09,239.99,32.53822611]
[1737207960190,32.53822611,240.02,239.96,137.3]
[1737207960391,32.53822611,240.04,239.96,169.83822611]
[1737207960693,32.53822611,240.06,239.96,169.83822611]
[1737207960895,32.53822611,240.06,239.98,32.53822611]
[1737207961100,32.53822611,240.08,240.0,169.83822611]
[1737207961894,32.53822611,240.1,240.02,32.53822611]
[1737207962105,23.776884,240.15,240.04,32.53822611]
[1737207962106,24.55795172,240.15,240.04,32.53822611]
[1737207962401,32.53822611,240.12,240.04,169.83822611]
[1737207962777,32.53822611,240.1,240.04,137.3]
[1737207962982,32.53822611,240.08,240.04,137.3]
[1737207964802,32.53822611,240.1,240.04,137.3]
[1737207965601,32.53822611,240.1,240.02,169.83822611]
[1737207966591,32.53822611,240.08,240.02,137.3]
[1737207966900,32.53822611,240.1,240.02,169.83822611]
[1737207967806,32.53822611,240.14,240.06,32.53822611]
[1737207968101,32.53822611,240.14,240.06,169.83822611]
[1737207969813,32.53822611,240.16,240.08,32.53822611]
[1737207970008,32.53822611,240.18,240.1,169.83822611]
[1737207970180,0.063,240.2,240.1,169.83822611]
[1737207970381,32.53822611,240.19,240.12,32.53822611]
[1737207970596,0.063,240.2,240.13,32.53822611]
[1737207971006,0.063,240.2,240.13,169.83822611]
[1737207971804,32.53822611,240.17,240.13,137.3]
[1737207972184,32.53822611,240.19,240.13,137.3]
[1737207973291,0.063,240.2,240.14,32.53822611]
[1737207973487,32.53822611,240.15,240.07,169.83822611]
[1737207974904,32.53822611,240.15,240.09,32.53822611]
[1737207975106,32.53822611,240.17,240.09,169.83822611]
[1737207975502,32.53822611,240.19,240.11,32.53822611]
[1737207977107,0.063,240.2,240.13,32.53822611]
[1737207977804,0.063,240.2,240.19,32.53822611]
[1737207977989,0.063,240.2,240.19,193.61511011]
[1737207979596,0.063,240.37,240.19,193.61511011]
[1737207979597,0.063,240.37,240.22,20.0]
[1737207979802,0.063,240.37,240.36,169.83822611]
[1737207980605,0.063,240.37,240.36,137.3]
[1737207980997,0.063,240.37,240.31,137.3]
[1737207981196,32.53822611,240.33,240.25,137.3]
[1737207981393,32.53822611,240.29,240.25,137.3]
[1737207981593,32.53822611,240.27,240.19,169.83822611]
[1737207981808,32.53822611,240.33,240.25,32.53822611]
[1737207982604,32.60122611,240.37,240.29,32.53822611]
[1737207983001,0.063,240.37,240.31,32.53822611]
[1737207983305,32.60122611,240.37,240.29,32.53822611]
[1737207983700,0.063,240.37,240.31,32.53822611]
[1737207983999,0.063,240.37,240.35,32.53822611]
[1737207984596,0.063,240.37,240.36,169.83822611]
[1737207987715,0.063,240.37,240.29,137.3]
[1737207987916,32.53822611,240.31,240.23,32.53822611]
[1737207988111,32.53822611,240.29,240.23,137.3]
[1737207988609,0.063,240.37,240.27,52.53822611]
[1737207988802,0.063,240.37,240.3,169.83822611]
[1737207989004,32.53822611,240.36,240.3,137.3]
[1737207990910,0.063,240.37,240.31,32.53822611]
[1737207991501,0.063,240.37,240.31,169.83822611]
[1737207992411,0.063,240.37,240.34,32.53822611]
[1737207992718,0.063,240.37,240.3,32.53822611]
[1737207993421,32.53822611,240.35,240.29,137.3]
[1737207993618,32.53822611,240.33,240.29,137.3]
[1737207993825,32.53822611,240.35,240.29,137.3]
[1737207994204,32.53822611,240.33,240.29,137.3]
[1737207994637,32.53822611,240.35,240.29,122.85020503]
[1737207994815,32.53822611,240.33,240.29,122.85020503]
[1737207995422,32.53822611,240.31,240.26,111.55020503]
[1737207995721,32.53822611,240.27,240.2,111.58020503]
[1737207995904,32.53822611,240.24,240.2,111.58020503]
[1737207996603,32.53822611,240.26,240.2,111.58020503]
[1737207998909,32.53822611,240.24,240.2,111.58020503]
[1737207999921,32.53822611,240.26,240.2,111.58020503]
[1737208000301,4.1614,240.3,240.2,111.58020503]
[1737208000302,32.53822611,240.28,240.2,144.11843114]
[1737208002135,4.1611,240.33,240.23,32.53822611]
[1737208002425,32.53822611,240.29,240.23,111.55020503]
[1737208003203,20.0,240.21,240.2,0.03]
[1737208003410,20.78088911,240.21,240.2,0.03]
[1737208004011,32.53822611,240.24,240.2,0.03]
[1737208004209,32.53822611,240.21,240.2,0.03]
[1737208005600,32.53822611,240.22,240.2,0.03]
[1737208005809,32.53822611,240.21,240.2,0.03]
[1737208006917,56.31511011,240.21,240.2,0.03]